fUSD/lending_fUSD_20240426
["ID","MTS","AMOUNT","RATE_DAILY","PERIOD"]
[323681671,1714162248423,-500.0,0.00011232,2]
[323681672,1714162248432,-700.11,0.00011232,2]
[323681673,1714162248443,-500.0,0.00011232,2]
[323681674,1714162248453,-687.33,0.00011232,2]
[323681675,1714162248465,-500.0,0.00011232,2]
[323681676,1714162248475,-500.0,0.00011232,2]
[323681677,1714162248486,-736.39,0.00011232,2]
[323681678,1714162248496,-500.0,0.00011232,2]
[323681679,1714162248506,-500.0,0.00011232,2]
[323681680,1714162248515,-535.02237028,0.00011232,2]
[323681681,1714162248524,-159.66,0.00011232,2]
[323681682,1714162248533,-500.0,0.00011232,2]
[323681683,1714162248543,-500.0,0.00011232,2]
[323681684,1714162248554,-942.17,0.00011232,2]
[323681685,1714162248564,-610.77,0.00011232,2]
[323681686,1714162248573,-500.0,0.00011232,2]
[323681687,1714162248584,-500.0,0.00011232,2]
[323681688,1714162248594,-500.0,0.00011232,2]
[323681689,1714162248604,-500.0,0.00011232,2]
[323681690,1714162248616,-1465.26,0.00011232,2]
[323681691,1714162248628,-500.0,0.00011232,2]
[323681692,1714162248639,-500.0,0.00011232,2]
[323681693,1714162248651,-500.0,0.00011232,2]
[323681694,1714162248663,-500.0,0.00011232,2]
[323681695,1714162248676,-500.0,0.00011232,2]
[323681696,1714162248688,-413.99437178,0.00011232,2]
[323681697,1714162248699,-1374.6,0.00011232,2]
[323681698,1714162248711,-500.0,0.00011232,2]
[323681699,1714162248723,-1309.46,0.00011232,2]
[323681700,1714162248735,-957.69,0.00011232,2]
[323681701,1714162248748,-290.12330364,0.00011232,2]
[323681702,1714162248760,-305.26,0.00011232,2]
[323681703,1714162248771,-554.85,0.00011232,2]
[323681704,1714162248781,-500.0,0.00011232,2]
[323681705,1714162248793,-734.11,0.00011232,2]
[323681706,1714162248803,-1547.48,0.00011232,2]
[323681707,1714162248814,-912.57,0.00011232,2]
[323681708,1714162248824,-500.0,0.00011232,2]
[323681709,1714162248835,-686.15,0.00011232,2]
[323681710,1714162248845,-500.0,0.00011232,2]
[323681711,1714162248855,-500.0,0.00011232,2]
[323681712,1714162248865,-352.42,0.00011232,2]
[323681713,1714162248874,-500.0,0.00011232,2]
[323681714,1714162248884,-500.0,0.00011232,2]
[323681715,1714162248895,-631.5,0.00011232,2]
[323681716,1714162248904,-625.38,0.00011232,2]
[323681717,1714162248913,-500.0,0.00011232,2]
[323681718,1714162248922,-500.0,0.00011232,2]
[323681719,1714162248932,-500.0,0.00011232,2]
[323681720,1714162248942,-500.0,0.00011232,2]
[323681721,1714162248952,-579.13,0.00011232,2]
[323681722,1714162248963,-500.0,0.00011232,2]
[323681723,1714162248973,-500.0,0.00011232,2]
[323681724,1714162248984,-1012.05,0.00011232,2]
[323681725,1714162248994,-719.54,0.00011232,2]
[323681726,1714162249004,-500.0,0.00011232,2]
[323681727,1714162249014,-500.0,0.00011232,2]
[323681728,1714162249025,-819.46,0.00011232,2]
[323681729,1714162249035,-529.2,0.00011232,2]
[323681730,1714162249044,-500.0,0.00011232,2]
[323681731,1714162249053,-500.0,0.00011232,2]
[323681732,1714162249063,-630.1,0.00011232,2]
[323681733,1714162249074,-180.02,0.00011232,2]
[323681734,1714162249136,-531.74,0.00011232,2]
[323681735,1714162249147,-500.0,0.00011232,2]
[323681736,1714162249156,-500.0,0.00011232,2]
[323681737,1714162249166,-500.0,0.00011232,2]
[323681738,1714162249176,-531.83,0.00011232,2]
[323681739,1714162249185,-500.0,0.00011232,2]
[323681740,1714162249194,-500.0,0.00011232,2]
[323681741,1714162249203,-500.0,0.00011232,2]
[323681742,1714162249213,-500.0,0.00011232,2]
[323681743,1714162249223,-584.8,0.00011232,2]
[323681744,1714162249236,-500.0,0.00011232,2]
[323681745,1714162249245,-500.0,0.00011232,2]
[323681746,1714162249254,-1789.42,0.00011232,2]
[323681747,1714162249263,-624.89,0.00011232,2]
[323681748,1714162249273,-500.0,0.00011232,2]
[323681749,1714162249282,-590.27,0.00011232,2]
[323681750,1714162249292,-500.0,0.00011232,2]
[323681751,1714162249301,-500.0,0.00011232,2]
[323681752,1714162249311,-681.35,0.00011232,2]
[323681753,1714162249321,-974.55,0.00011232,2]
[323681754,1714162249330,-500.0,0.00011232,2]
[323681755,1714162249339,-480.81089533,0.00011232,2]
[323681756,1714162249348,-500.0,0.00011232,2]
[323681757,1714162249357,-500.0,0.00011232,2]
[323681758,1714162249366,-1421.44,0.00011232,2]
[323681759,1714162249375,-500.0,0.00011232,2]
[323681760,1714162249383,-500.0,0.00011232,2]
[323681761,1714162249392,-500.0,0.00011232,2]
[323681762,1714162249401,-560.01,0.00011232,2]
[323681763,1714162249410,-500.0,0.00011232,2]
[323681764,1714162249420,-500.0,0.00011232,2]
[323681765,1714162249429,-500.0,0.00011232,2]
[323681766,1714162249439,-3135.84,0.00011232,2]
[323681767,1714162249448,-611.46,0.00011232,2]
[323681768,1714162249457,-642.24,0.00011232,2]
[323681769,1714162249467,-500.0,0.00011232,2]
[323681770,1714162249476,-500.0,0.00011232,2]
[323681771,1714162249485,-500.0,0.00011232,2]
[323681772,1714162249495,-597.26,0.00011232,2]
[323681773,1714162249504,-6797.08,0.00011232,2]
[323681774,1714162249514,-500.0,0.00011232,2]
[323681775,1714162249524,-868.92,0.00011232,2]
[323681776,1714162249534,-500.0,0.00011232,2]
[323681777,1714162249543,-2201.82,0.00011232,2]
[323681778,1714162249554,-1594.7,0.00011232,2]
[323681779,1714162249563,-1677.94,0.00011232,2]
[323681780,1714162249572,-500.0,0.00011232,2]
[323681781,1714162249581,-304.58,0.00011232,2]
[323681782,1714162249591,-928.55,0.00011232,2]
[323681783,1714162249602,-638.02,0.00011232,2]
[323681784,1714162249611,-1288.34,0.00011232,2]
[323681785,1714162249622,-501.63355826,0.00011232,2]
[323681786,1714162249633,-2893.79,0.00011232,2]
[323681787,1714162249642,-500.0,0.00011232,2]
[323681788,1714162249652,-500.0,0.00011232,2]
[323681789,1714162249661,-500.0,0.00011232,2]
[323681790,1714162249670,-2465.22,0.00011232,2]
[323681791,1714162249679,-500.0,0.00011232,2]
[323681792,1714162249688,-500.0,0.00011232,2]
[323681793,1714162249697,-3084.06,0.00011232,2]
[323681794,1714162249706,-504.25,0.00011232,2]
[323681795,1714162249717,-4861.52,0.00011232,2]
[323681796,1714162249727,-500.0,0.00011232,2]
[323681797,1714162249737,-500.0,0.00011232,2]
[323681798,1714162249746,-500.0,0.00011232,2]
[323681799,1714162249756,-500.0,0.00011232,2]
[323681800,1714162249765,-500.0,0.00011232,2]
[323681801,1714162249774,-500.0,0.00011232,2]
[323681802,1714162249784,-2645.63,0.00011232,2]
[323681803,1714162249793,-1594.12,0.00011232,2]
[323681804,1714162249804,-3423.77,0.00011232,2]
[323681805,1714162249815,-6052.4,0.00011232,2]
[323681806,1714162249825,-1542.06,0.00011232,2]
[323681807,1714162249835,-500.0,0.00011232,2]
[323681808,1714162249845,-1225.71,0.00011232,2]
[323681809,1714162249855,-521.9,0.00011232,2]
[323681810,1714162249865,-1373.62,0.00011232,2]
[323681811,1714162249874,-1925.55,0.00011232,2]
[323681812,1714162249884,-848.83,0.00011232,2]
[323681813,1714162249894,-1014.64,0.00011232,2]
[323681814,1714162249904,-500.0,0.00011232,2]
[323681815,1714162249914,-409.38889791,0.00011232,2]
[323681816,1714162249922,-863.72,0.00011232,2]
[323681817,1714162249932,-954.93,0.00011232,2]
[323681818,1714162249941,-1147.64,0.00011232,2]
[323681819,1714162249949,-500.0,0.00011232,2]
[323681820,1714162249958,-500.0,0.00011232,2]
[323681821,1714162249969,-2950.25,0.00011232,2]
[323681822,1714162249978,-1368.11,0.00011232,2]
[323681823,1714162249987,-500.0,0.00011232,2]
[323681824,1714162249998,-561.57,0.00011232,2]
[323681825,1714162250007,-654.41,0.00011232,2]
[323681826,1714162250016,-500.0,0.00011232,2]
[323681827,1714162250025,-500.0,0.00011232,2]
[323681828,1714162250035,-877.85,0.00011232,2]
[323681829,1714162250044,-1111.15,0.00011232,2]
[323681830,1714162250053,-7051.72,0.00011232,2]
[323681831,1714162250062,-2063.7,0.00011232,2]
[323681832,1714162250071,-500.0,0.00011232,2]
[323681833,1714162250080,-500.0,0.00011232,2]
[323681834,1714162250090,-500.0,0.00011232,2]
[323681835,1714162250099,-500.0,0.00011232,2]
[323681836,1714162250108,-7897.86,0.00011232,2]
[323681837,1714162250118,-505.29,0.00011232,2]
[323681838,1714162250127,-500.0,0.00011232,2]
[323681839,1714162250137,-1005.69,0.00011232,2]
[323681840,1714162250147,-500.0,0.00011232,2]
[323681841,1714162250158,-4144.22,0.00011232,2]
[323681842,1714162250168,-501.97,0.00011232,2]
[323681843,1714162250178,-500.0,0.00011232,2]
[323681844,1714162250188,-500.0,0.00011232,2]
[323681845,1714162250198,-3339.38,0.00011232,2]
[323681846,1714162250208,-500.0,0.00011232,2]
[323681847,1714162250217,-829.72,0.00011232,2]
[323681848,1714162250227,-8031.44,0.00011232,2]
[323681849,1714162250239,-2145.26,0.00011232,2]
[323681850,1714162250249,-500.0,0.00011232,2]
[323681851,1714162250259,-500.0,0.00011232,2]
[323681852,1714162250268,-354.01,0.00011232,2]
[323681853,1714162250278,-2213.2,0.00011232,2]
[323681854,1714162250288,-608.96,0.00011232,2]
[323681855,1714162250297,-2550.13,0.00011232,2]
[323681856,1714162250309,-500.0,0.00011232,2]
[323681857,1714162250319,-13673.84,0.00011232,2]
[323681858,1714162250328,-1302.63,0.00011232,2]
[323681859,1714162250339,-500.0,0.00011232,2]
[323681860,1714162250349,-3483.45,0.00011232,2]
[323681861,1714162250360,-915.24,0.00011232,2]
[323681862,1714162250369,-500.0,0.00011232,2]
[323681863,1714162250379,-157.01543514,0.00011232,2]
[323681864,1714162250388,-2245.37,0.00011232,2]
[323681865,1714162250398,-500.0,0.00011232,2]
[323681866,1714162250406,-500.0,0.00011232,2]
[323681867,1714162250416,-1189.39,0.00011232,2]
[323681868,1714162250426,-2476.65,0.00011232,2]
[323681869,1714162250436,-500.0,0.00011232,2]
[323681870,1714162250445,-500.0,0.00011232,2]
[323681871,1714162250455,-1338.01,0.00011232,2]
[323681872,1714162250465,-500.0,0.00011232,2]
[323681873,1714162250475,-2013.43,0.00011232,2]
[323681874,1714162250486,-634.76,0.00011232,2]
[323681875,1714162250496,-2115.07,0.00011232,2]
[323681876,1714162250506,-4419.33,0.00011232,2]
[323681877,1714162250516,-500.0,0.00011232,2]
[323681878,1714162250526,-1136.93,0.00011232,2]
[323681879,1714162250536,-1875.76,0.00011232,2]
[323681880,1714162250546,-500.0,0.00011232,2]
[323681881,1714162250556,-1101.56,0.00011232,2]
[323681882,1714162250566,-503.35597589,0.00011232,2]
[323681883,1714162250575,-500.0,0.00011232,2]
[323681884,1714162250585,-1663.08,0.00011232,2]
[323681885,1714162250595,-1627.0,0.00011232,2]
[323681886,1714162250606,-500.0,0.00011232,2]
[323681887,1714162250615,-500.0,0.00011232,2]
[323681888,1714162250625,-500.0,0.00011232,2]
[323681889,1714162250635,-500.0,0.00011232,2]
[323681890,1714162250645,-2125.26,0.00011232,2]
[323681891,1714162250656,-877.61,0.00011232,2]
[323681892,1714162250667,-210.34,0.00011232,2]
[323681893,1714162250676,-500.0,0.00011232,2]
[323681894,1714162250686,-500.0,0.00011232,2]
[323681895,1714162250696,-679.84,0.00011232,2]
[323681896,1714162250707,-500.0,0.00011232,2]
[323681897,1714162250718,-1791.19,0.00011232,2]
[323681898,1714162250728,-472.65229047,0.00011232,2]
[323681899,1714162250737,-1823.01,0.00011232,2]
[323681900,1714162250746,-500.0,0.00011232,2]
[323681901,1714162250755,-6618.25,0.00011232,2]
[323681902,1714162250765,-500.0,0.00011232,2]
[323681903,1714162250776,-1559.34,0.00011232,2]
[323681904,1714162250786,-3664.28,0.00011232,2]
[323681905,1714162250797,-2464.74,0.00011232,2]
[323681906,1714162250807,-1371.64,0.00011232,2]
[323681907,1714162250817,-500.0,0.00011232,2]
[323681908,1714162250827,-5397.16,0.00011232,2]
[323681909,1714162250837,-1185.69,0.00011232,2]
[323681910,1714162250848,-266.02,0.00011232,2]
[323681911,1714162250858,-2567.83,0.00011232,2]
[323681912,1714162250868,-500.0,0.00011232,2]
[323681913,1714162250879,-500.0,0.00011232,2]
[323681914,1714162250890,-2186.92,0.00011232,2]
[323681915,1714162250900,-1045.11,0.00011232,2]
[323681916,1714162250910,-625.31,0.00011232,2]
[323681917,1714162250920,-500.0,0.00011232,2]
[323681918,1714162250931,-2177.61,0.00011232,2]
[323681919,1714162250942,-500.0,0.00011232,2]
[323681920,1714162250952,-646.34,0.00011232,2]
[323681921,1714162250962,-1647.86,0.00011232,2]
[323681922,1714162250972,-500.0,0.00011232,2]
[323681923,1714162250983,-500.0,0.00011232,2]
[323681924,1714162250992,-500.0,0.00011232,2]
[323681925,1714162251001,-1120.9,0.00011232,2]
[323681926,1714162251011,-2543.46,0.00011232,2]
[323681927,1714162251021,-860.94,0.00011232,2]
[323681928,1714162251031,-500.0,0.00011232,2]
[323681929,1714162251041,-756.69,0.00011232,2]
[323681930,1714162251051,-856.16,0.00011232,2]
[323681931,1714162251060,-500.0,0.00011232,2]
[323681932,1714162251070,-1909.76,0.00011232,2]
[323681933,1714162251079,-500.0,0.00011232,2]
[323681934,1714162251089,-223.98646344,0.00011232,2]
[323681935,1714162251099,-623.27,0.00011232,2]
[323681936,1714162251110,-695.77,0.00011232,2]
[323681937,1714162251119,-500.0,0.00011232,2]
[323681938,1714162251129,-2031.44,0.00011232,2]
[323681939,1714162251140,-500.0,0.00011232,2]
[323681940,1714162251150,-572.71596926,0.00011232,2]
[323681941,1714162251160,-2323.13,0.00011232,2]
[323681942,1714162251169,-500.0,0.00011232,2]
[323681943,1714162251179,-500.0,0.00011232,2]
[323681944,1714162251189,-4300.5,0.00011232,2]
[323681945,1714162251199,-500.0,0.00011232,2]
[323681946,1714162251209,-500.0,0.00011232,2]
[323681947,1714162251220,-771.53,0.00011232,2]
[323681948,1714162251231,-500.0,0.00011232,2]
[323681949,1714162251244,-500.0,0.00011232,2]
[323681950,1714162251256,-601.75,0.00011232,2]
[323681951,1714162251267,-1390.66,0.00011232,2]
[323681952,1714162251278,-500.0,0.00011232,2]
[323681953,1714162251288,-500.0,0.00011232,2]
[323681954,1714162251298,-500.0,0.00011232,2]
[323681955,1714162251308,-928.5,0.00011232,2]
[323681956,1714162251320,-1555.66,0.00011232,2]
[323681957,1714162251330,-500.0,0.00011232,2]
[323681958,1714162251340,-500.0,0.00011232,2]
[323681959,1714162251348,-2963.8,0.00011232,2]
[323681960,1714162251356,-500.0,0.00011232,2]
[323681961,1714162251364,-2910.13,0.00011232,2]
[323681962,1714162251372,-959.86,0.00011232,2]
[323681963,1714162251380,-832.91,0.00011232,2]
[323681964,1714162251389,-5428.99,0.00011232,2]
[323681965,1714162251398,-500.0,0.00011232,2]
[323681966,1714162251407,-500.0,0.00011232,2]
[323681967,1714162251417,-500.0,0.00011232,2]
[323681968,1714162251426,-500.0,0.00011232,2]
[323681969,1714162251435,-500.0,0.00011232,2]
[323681970,1714162251444,-500.0,0.00011232,2]
[323681971,1714162251453,-500.0,0.00011232,2]
[323681972,1714162251465,-950.3,0.00011232,2]
[323681973,1714162251474,-500.0,0.00011232,2]
[323681974,1714162251484,-1256.0,0.00011232,2]
[323681975,1714162251496,-500.0,0.00011232,2]
[323681976,1714162251505,-500.0,0.00011232,2]
[323681977,1714162251515,-333.67587635,0.00011232,2]
[323681978,1714162251525,-500.0,0.00011232,2]
[323681979,1714162251534,-2665.03,0.00011232,2]
[323681980,1714162251544,-680.43,0.00011232,2]
[323681981,1714162251555,-1859.46,0.00011232,2]
[323681982,1714162251564,-2028.62,0.00011232,2]
[323681983,1714162251575,-4424.38,0.00011232,2]
[323681984,1714162251586,-500.0,0.00011232,2]
[323681985,1714162251599,-1199.5,0.00011232,2]
[323681986,1714162251611,-500.0,0.00011232,2]
[323681987,1714162251622,-914.3,0.00011232,2]
[323681988,1714162251632,-751.03,0.00011232,2]
[323681989,1714162251642,-930.83,0.00011232,2]
[323681990,1714162251651,-500.0,0.00011232,2]
[323681991,1714162251661,-500.0,0.00011232,2]
[323681992,1714162251670,-500.0,0.00011232,2]
[323681993,1714162251680,-500.0,0.00011232,2]
[323681994,1714162251690,-500.0,0.00011232,2]
[323681995,1714162251700,-500.0,0.00011232,2]
[323681996,1714162251709,-500.0,0.00011232,2]
[323681997,1714162251720,-234.99,0.00011232,2]
[323681998,1714162251729,-500.0,0.00011232,2]
[323681999,1714162251740,-500.0,0.00011232,2]
[323682000,1714162251749,-2376.63,0.00011232,2]
[323682001,1714162251759,-500.0,0.00011232,2]
[323682002,1714162251769,-3763.87,0.00011232,2]
[323682003,1714162251778,-500.0,0.00011232,2]
[323682004,1714162251789,-500.0,0.00011232,2]
[323682005,1714162251801,-500.0,0.00011232,2]
[323682006,1714162251811,-500.0,0.00011232,2]
[323682007,1714162251821,-504.46913743,0.00011232,2]
[323682008,1714162251832,-344.72,0.00011232,2]
[323682009,1714162251842,-500.0,0.00011232,2]
[323682010,1714162251852,-2091.24,0.00011232,2]
[323682011,1714162251861,-500.0,0.00011232,2]
[323682012,1714162251871,-500.0,0.00011232,2]
[323682013,1714162251881,-1280.93,0.00011232,2]
[323682014,1714162251891,-500.0,0.00011232,2]
[323682015,1714162251901,-524.0,0.00011232,2]
[323682016,1714162251912,-500.0,0.00011232,2]
[323682017,1714162251921,-408.93526254,0.00011232,2]
[323682018,1714162252266,-792.91473746,0.00011232,2]
[323682019,1714162252278,-500.0,0.00011232,2]
[323682020,1714162252288,-3749.4,0.00011232,2]
[323682021,1714162252299,-1278.71,0.00011232,2]
[323682022,1714162252309,-500.0,0.00011232,2]
[323682023,1714162252319,-500.0,0.00011232,2]
[323682024,1714162252329,-2680.67,0.00011232,2]
[323682025,1714162252339,-497.81,0.00011232,2]
[323682026,1714162252351,-500.0,0.00011232,2]
[323682027,1714162252361,-5272.03,0.00011232,2]
[323682028,1714162252372,-500.0,0.00011232,2]
[323682029,1714162252381,-500.0,0.00011232,2]
[323682030,1714162252392,-500.0,0.00011232,2]
[323682031,1714162252403,-500.0,0.00011232,2]
[323682032,1714162252414,-500.0,0.00011232,2]
[323682033,1714162252424,-500.0,0.00011232,2]
[323682034,1714162252434,-8016.96,0.00011232,2]
[323682035,1714162252445,-2212.0,0.00011232,2]
[323682036,1714162252456,-500.0,0.00011232,2]
[323682037,1714162252466,-500.0,0.00011232,2]
[323682038,1714162252477,-170.11517313,0.00011269,2]
[323682039,1714162252488,-1208.19,0.00011287,2]
[323682040,1714162252498,-138614.73926723,0.00011288,2]
[323682041,1714162252512,-66313.63001943,0.00011288,2]
[323682042,1714162253031,-1046.7296758,0.00010562,2]
[323682043,1714162253132,-896.82497611,0.00010562,2]
[323682044,1714162253456,-463.11567431,0.00010562,2]
[323682045,1714162253487,-93.32967378,0.00010562,2]
[323682046,1714162253499,-500.0,0.00010958,2]
[323682047,1714162253510,-711.25290908,0.00011288,2]
[323682048,1714162253530,-691.31999944,0.00011288,2]
[323682049,1714162253982,-358.65432124,0.00010958,2]
[323682050,1714162254208,-141.34567876,0.00010958,2]
[323682051,1714162254219,-311.93974879,0.00010958,2]
[323682052,1714162254244,-188.06025121,0.00010958,2]
[323682053,1714162254253,-500.0,0.00010958,2]
[323682054,1714162254264,-500.0,0.00010958,2]
[323682055,1714162254273,-204.8,0.00011232,2]
[323682056,1714162254285,-2381.20390682,0.00011288,2]
[323682057,1714162254296,-1535.95,0.00011288,2]
[323682058,1714162254309,-975.50000002,0.00011288,2]
[323682059,1714162254343,-0.00348714,0.00011288,2]
[323682060,1714162254910,-272.45285571,0.00010958,2]
[323682061,1714162254922,-227.54714429,0.00010958,2]
[323682062,1714162254933,-144.10356842,0.00010958,2]
[323682063,1714162254951,-355.89643158,0.00010958,2]
[323682064,1714162254961,-272.45776842,0.00010958,2]
[323682065,1714162254973,-227.54223158,0.00010958,2]
[323682066,1714162254982,-261.48463838,0.00010958,2]
[323682067,1714162267707,253574.52365191,8.354e-05,2]
[323682070,1714162669617,357.11,8.219e-05,2]
[323682100,1714163174718,339.25,8.219e-05,2]
[323682110,1714163418114,593.0,0.00025,120]
[323682117,1714163432082,-447.53187127,8.8e-05,2]
[323682121,1714163432144,-39.96333053,8.8e-05,2]
[323682123,1714163432153,-164.56610588,8.801e-05,2]
[323682124,1714163432174,-155.0,8.801e-05,2]
[323682125,1714163432185,-22774.57803664,8.802e-05,2]
[323682126,1714163432195,-23359.83893965,8.803e-05,2]
[323682127,1714163432206,-150.0,8.804e-05,2]
[323682128,1714163432216,-4333.55292304,8.804e-05,2]
[323682129,1714163432226,-284.5,8.808e-05,2]
[323682130,1714163432236,-197.22,9.217e-05,2]
[323682131,1714163432245,-250.0,9.286e-05,2]
[323682132,1714163432256,-23890.0,9.334e-05,2]
[323682133,1714163432266,-177.62,9.348e-05,2]
[323682134,1714163432276,-153.72,9.379e-05,2]
[323682135,1714163432285,-2589.79,9.408e-05,2]
[323682136,1714163432294,-153.72,9.424e-05,2]
[323682137,1714163432303,-153.72,9.468e-05,2]
[323682138,1714163432311,-153.72,9.513e-05,2]
[323682139,1714163432320,-5806.13527407,9.534e-05,2]
[323682140,1714163432330,-560.0,9.546e-05,2]
[323682141,1714163432340,-153.72,9.557e-05,2]
[323682142,1714163432349,-153.72,9.601e-05,2]
[323682143,1714163432650,-224.51,9.636e-05,2]
[323682144,1714163432662,-153.72,9.646e-05,2]
[323682145,1714163432672,-317.98,9.67e-05,2]
[323682146,1714163432681,-7291.55,9.67e-05,2]
[323682147,1714163432690,-499.99,9.67e-05,2]
[323682148,1714163432700,-150.99,9.67e-05,2]
[323682149,1714163432710,-190.0,9.685e-05,2]
[323682150,1714163432720,-153.72,9.69e-05,2]
[323682151,1714163432729,-153.72,9.735e-05,2]
[323682152,1714163432738,-153.72,9.779e-05,2]
[323682153,1714163432747,-153.72,9.824e-05,2]
[323682154,1714163432756,-153.72,9.868e-05,2]
[323682155,1714163432766,-284.5,9.909e-05,2]
[323682156,1714163432775,-2500.0,9.945e-05,2]
[323682157,1714163432785,-2500.0,9.945e-05,2]
[323682159,1714163432794,-3166.90562912,0.0001,2]
[323682161,1714163432803,-260.69,0.0001,2]
[323682162,1714163432813,-2355.79540896,0.00010316,2]
[323682164,1714163432822,-339.25,0.00010412,2]
[323682165,1714163432831,-2004.537,0.00010462,2]
[323682166,1714163432841,-67223.677,0.00010462,2]
[323682167,1714163432850,-436.1677,0.00010462,2]
[323682168,1714163432859,-100000.0,0.00010562,2]
[323682169,1714163432867,-173.6259,0.00010562,2]
[323682170,1714163432877,-1233.26464772,0.00010722,2]
[323682171,1714163432885,-560.0,0.00010739,2]
[323682172,1714163432895,-224.51,0.00010841,2]
[323682173,1714163432905,-209.52982044,0.00010858,2]
[323682174,1714163432914,-275.96253422,0.00010858,2]
[323682175,1714163432924,-3767.97770905,0.00010858,2]
[323682176,1714163432933,-240.45127752,0.00010858,2]
[323682177,1714163432943,-2279.5534,0.00010858,2]
[323682178,1714163432952,-725.915,0.00010858,2]
[323682179,1714163432962,-55596.7157,0.00010858,2]
[323682180,1714163432971,-155.0,0.000109,2]
[323682181,1714163432981,-240.45127751,0.0001094,2]
[323682182,1714163432990,-297.61460704,0.00010956,2]
[323682183,1714163433000,-641.61516885,0.00010956,2]
[323682184,1714163433010,-236.4795796,0.00010956,2]
[323682185,1714163433020,-194.36220808,0.00010956,2]
[323682186,1714163433030,-265.50698915,0.00010956,2]
[323682187,1714163433041,-155.0,0.00010956,2]
[323682188,1714163433050,-305.39391058,0.00010956,2]
[323682189,1714163433060,-162.10190653,0.00010956,2]
[323682190,1714163433070,-226.20204184,0.00010956,2]
[323682191,1714163433081,-155.0,0.00010956,2]
[323682192,1714163433091,-155.84235863,0.00010956,2]
[323682193,1714163433103,-316.62824532,0.00010956,2]
[323682194,1714163433112,-223.65370089,0.00010956,2]
[323682195,1714163433123,-155.05100337,0.00010957,2]
[323682196,1714163433133,-155.0,0.00010957,2]
[323682197,1714163433143,-558.69566553,0.00010958,2]
[323682198,1714163433153,-500.0,0.00010958,2]
[323682199,1714163433164,-500.0,0.00010958,2]
[323682200,1714163433175,-500.0,0.00010958,2]
[323682201,1714163433186,-500.0,0.00010958,2]
[323682202,1714163433197,-500.0,0.00010958,2]
[323682203,1714163433208,-500.0,0.00010958,2]
[323682204,1714163433219,-610.76,0.00010958,2]
[323682205,1714163433229,-500.0,0.00010958,2]
[323682206,1714163433241,-444.46701666,0.00010958,2]
[323682207,1714163433253,-500.0,0.00010958,2]
[323682208,1714163433265,-500.0,0.00010958,2]
[323682209,1714163433275,-500.0,0.00010958,2]
[323682210,1714163433284,-500.0,0.00010958,2]
[323682211,1714163433295,-391.97456221,0.00010958,2]
[323682212,1714163433305,-502.73029692,0.00010958,2]
[323682213,1714163433316,-500.0,0.00010958,2]
[323682214,1714163433326,-247.42305475,0.00010958,2]
[323682215,1714163433336,-500.0,0.00010958,2]
[323682216,1714163433346,-237.98874207,0.00010958,2]
[323682217,1714163433357,-500.0,0.00010958,2]
[323682218,1714163433367,-500.0,0.00010958,2]
[323682219,1714163433377,-500.0,0.00010958,2]
[323682220,1714163433387,-515.19741678,0.00010958,2]
[323682221,1714163433396,-500.0,0.00010958,2]
[323682222,1714163433406,-500.0,0.00010958,2]
[323682223,1714163433416,-373.39555973,0.00010958,2]